bitfinex-derivatives/quotes_SOLF0:USTF0_20241203
["timestamp","ask_amount","ask_price","bid_price","bid_amount"]
[1733257154199,7.07100177,229.49,229.4,7.72100177]
[1733257154398,2.22,229.48,229.4,7.72100177]
[1733257154994,7.07100177,229.47,229.43,2.1782]
[1733257156302,2.22,229.48,229.4,7.07100177]
[1733257156303,7.07100177,229.45,229.4,2.1786]
[1733257158297,7.07100177,229.45,229.37,7.07100177]
[1733257158696,7.07100177,229.41,229.35,1.3423]
[1733257158900,2.22,229.42,229.39,2.1786]
[1733257159195,2.22,229.42,229.38,7.07100177]
[1733257159803,7.07100177,229.46,229.44,2.1782]
[1733257160511,7.07100177,229.46,229.43,2.1783]
[1733257160713,7.07100177,229.46,229.38,7.07100177]
[1733257160904,7.07100177,229.46,229.4,7.07100177]
[1733257163908,7.07100177,229.46,229.43,2.1783]
[1733257164815,2.22,229.47,229.43,2.1783]
[1733257165015,2.22,229.47,229.44,2.1782]
[1733257165713,7.07100177,229.48,229.44,2.1782]
[1733257165919,1.2593,229.6,229.44,7.07100177]
[1733257166114,7.07100177,229.53,229.46,7.07100177]
[1733257166315,2.22,229.52,229.4,2.22]
[1733257166516,2.1772,229.55,229.49,2.1776]
[1733257166715,2.1772,229.55,229.41,1.3809]
[1733257166716,9.29100177,229.54,229.41,1.3809]
[1733257166910,2.22,229.53,229.45,7.07100177]
[1733257167618,2.22,229.53,229.47,7.07100177]
[1733257168313,2.22,229.54,229.47,7.07100177]
[1733257168920,7.07100177,229.55,229.49,7.07100177]
[1733257169120,9.29100177,229.57,229.51,7.07100177]
[1733257169312,9.29100177,229.57,229.54,2.1772]
[1733257170218,2.22915595,229.69,229.49,7.07100177]
[1733257170414,7.07100177,229.58,229.46,2.6464]
[1733257170718,2.22,229.57,229.49,7.07100177]
[1733257171618,2.22,229.57,229.52,2.1773]
[1733257173314,7.07100177,229.56,229.52,2.1773]
[1733257173516,4.397,229.57,229.41,1.3809]
[1733257173517,7.07100177,229.54,229.41,1.3809]
[1733257173721,7.07100177,229.52,229.41,1.3809]
[1733257173911,7.07100177,229.5,229.46,2.1779]
[1733257174116,9.29100177,229.5,229.46,2.1779]
[1733257175115,7.07100177,229.48,229.44,2.1781]
[1733257175524,4.3977,229.5,229.44,2.1781]
[1733257175724,4.3977,229.5,229.45,2.1781]
[1733257176417,2.17453095,229.83,229.49,11.03730233]
[1733257176623,3.9898,229.99,229.57,22.07460466]
[1733257176817,11.03730233,229.9,229.73,11.03730233]
[1733257177020,11.03730233,229.9,229.76,2.1751]
[1733257177021,2.44,229.89,229.76,2.1751]
[1733257177219,13.21110233,229.9,229.73,11.03730233]
[1733257177521,2.44,229.88,229.76,11.03730233]
[1733257177721,11.03730233,229.9,229.77,2.175]
[1733257177923,2.44,229.87,229.77,2.175]
[1733257178218,2.44,229.87,229.76,11.03730233]
[1733257178625,1.3465,229.86,229.76,11.03730233]
[1733257179522,1.3465,229.86,229.76,13.21240233]
[1733257180025,1.3465,229.86,229.76,11.03730233]
[1733257180520,2.44,229.85,229.76,11.03730233]
[1733257181025,2.44,229.85,229.79,2.1748]
[1733257182626,2.44,229.85,229.79,13.21210233]
[1733257182929,2.42,229.84,229.82,13.21180233]
[1733257183130,1.2751,229.92,229.82,13.21180233]
[1733257183421,2.42,229.91,229.85,0.65]
[1733257185122,2.42,229.9,229.85,0.65]
[1733257187427,2.42,229.9,229.79,13.21210233]
[1733257187725,2.174,229.89,229.79,11.03730233]
[1733257188328,1.2602,229.88,229.79,11.03730233]
[1733257189422,2.1741,229.87,229.79,11.03730233]
[1733257191025,1.2602,229.88,229.76,11.03730233]
[1733257191228,11.03730233,229.87,229.73,11.03730233]
[1733257191829,1.2901,229.86,229.73,11.03730233]
[1733257192022,2.1747,229.82,229.73,13.21270233]
[1733257192220,3.6894,229.81,229.73,13.21270233]
[1733257192428,1.2694,229.81,229.73,13.21270233]
[1733257194028,4.5948,229.8,229.72,2.1755]
[1733257194537,2.42,229.79,229.72,2.1755]
[1733257195232,4.5949,229.79,229.7,13.21300233]
[1733257195437,4.5949,229.79,229.7,11.03730233]
[1733257195732,1.2901,229.86,229.66,20.62498892]
[1733257195733,2.42,229.78,229.76,11.03730233]
[1733257196235,1.77,229.78,229.76,11.03730233]
[1733257196929,1.12,229.78,229.77,2.1751]
[1733257197728,0.47,229.78,229.77,2.1751]
[1733257198733,2.42,229.79,229.78,2.1749]
[1733257200831,2.42,229.79,229.77,2.175]
[1733257201537,2.42,229.78,229.73,11.03730233]
[1733257201835,1.77,229.78,229.73,11.03730233]
[1733257202136,2.42,229.77,229.73,11.03730233]
[1733257202637,1.77,229.77,229.76,2.1751]
[1733257203338,2.1745,229.84,229.78,0.65]
[1733257203634,1.2901,229.86,229.78,0.65]
[1733257203635,2.42,229.83,229.78,0.65]
[1733257205042,2.42,229.82,229.78,0.65]
[1733257205941,1.2901,229.86,229.78,0.65]
[1733257206140,2.42,229.85,229.78,0.65]
[1733257206632,2.1745,229.83,229.78,0.65]
[1733257207538,2.1745,229.83,229.73,11.03730233]
[1733257207943,2.1744,229.85,229.73,11.03730233]
[1733257208236,2.1744,229.85,229.68,11.03730233]
[1733257208237,2.34,229.84,229.76,11.03730233]
[1733257208541,2.34,229.84,229.79,2.1748]
[1733257209237,2.34,229.84,229.76,2.1752]
[1733257209642,11.03730233,229.83,229.71,11.03730233]
[1733257209840,2.1748,229.8,229.75,2.1752]
[1733257210034,2.34,229.84,229.71,11.03730233]
[1733257210340,2.1747,229.81,229.74,2.1753]
[1733257210539,2.1747,229.81,229.71,11.03730233]
[1733257211038,2.1746,229.83,229.71,11.03730233]
[1733257213235,2.1746,229.83,229.77,2.1751]
[1733257213741,2.34,229.84,229.71,11.03730233]
[1733257214433,11.03730233,229.83,229.71,13.21310233]
[1733257214833,2.1753,229.77,229.71,13.21310233]
[1733257215041,2.34,229.76,229.72,2.1757]
[1733257215241,2.34,229.76,229.71,11.03730233]
[1733257215635,2.34,229.76,229.73,2.1756]
[1733257216439,2.34,229.76,229.71,11.03730233]
[1733257216643,2.34,229.76,229.71,13.21310233]
[1733257216945,2.34,229.76,229.71,11.03730233]
[1733257217839,2.34,229.76,229.73,2.1756]
[1733257219041,2.34,229.76,229.71,2.1758]
[1733257219244,2.34,229.76,229.65,11.03730233]
[1733257219441,2.1757,229.73,229.67,2.1762]
[1733257219639,2.34,229.76,229.67,2.1762]
[1733257220042,2.34,229.76,229.65,13.21370233]
[1733257220241,2.34,229.76,229.66,3.3744091]
[1733257220444,2.34,229.76,229.67,1.29599717]
[1733257220645,2.34,229.76,229.62,11.03730233]
[1733257220845,2.34,229.76,229.63,6.31164834]
[1733257221047,2.34,229.76,229.65,2.1763]
[1733257221344,2.34,229.76,229.66,3.38452833]
[1733257221545,11.03730233,229.74,229.67,3.38452833]
[1733257221747,11.03730233,229.74,229.61,1.46408237]
[1733257221948,11.03730233,229.74,229.58,11.03730233]
[1733257221949,11.03730233,229.74,229.62,5.03472285]
[1733257222245,2.1762,229.68,229.63,4.26357655]
[1733257222438,2.34,229.67,229.63,2.1766]
[1733257222840,2.34,229.67,229.57,1.48243228]
[1733257223044,2.34,229.67,229.58,20.77617959]
[1733257223256,2.34,229.67,229.59,2.07866641]
[1733257223443,2.1766,229.63,229.58,2.1771]
[1733257224245,2.1769,229.6,229.5,1.48243228]
[1733257224445,2.34,229.59,229.52,11.03730233]
[1733257224652,2.34,229.59,229.53,2.07779817]
[1733257224854,2.34,229.59,229.52,11.03730233]
[1733257225052,2.34,229.59,229.55,2.1773]
[1733257227150,2.34,229.59,229.47,1.2928]
[1733257227453,2.34,229.59,229.51,11.03730233]
[1733257227751,2.34,229.59,229.57,2.1772]
[1733257227951,2.34,229.59,229.54,11.03730233]
[1733257229044,2.34,229.59,229.57,2.1771]
[1733257230754,2.34,229.59,229.54,11.03730233]
[1733257230955,2.34,229.59,229.56,2.1773]
[1733257234655,2.34,229.59,229.57,2.1772]
[1733257235454,2.34,229.59,229.58,2.1771]
[1733257238050,2.34,229.59,229.54,11.03730233]
[1733257239056,2.34,229.59,229.55,2.1773]
[1733257239256,2.34,229.59,229.54,11.03730233]
[1733257239760,2.34,229.59,229.56,2.1772]
[1733257240259,2.24,229.58,229.57,2.1772]
[1733257240458,2.24,229.58,229.54,11.03730233]
[1733257240659,1.59,229.58,229.54,11.03730233]
[1733257240860,1.59,229.58,229.57,2.1772]
[1733257241456,0.94,229.58,229.57,2.1772]
[1733257241855,1.3129,229.66,229.57,11.03730233]
[1733257242159,2.24,229.65,229.6,11.03730233]
[1733257242554,3.9042,229.73,229.64,2.1765]
[1733257242751,2.24,229.72,229.64,2.1765]
[1733257242962,2.24,229.72,229.66,0.17]
[1733257243457,2.176,229.7,229.66,0.17]
[1733257245251,2.176,229.7,229.66,2.3463]
[1733257245450,2.1759,229.71,229.66,0.17]
[1733257245655,2.24,229.72,229.66,2.3463]
[1733257246062,2.176,229.7,229.66,0.17]
[1733257246753,2.176,229.7,229.67,2.1762]
[1733257253057,2.24,229.72,229.66,2.1763]
[1733257253058,2.1761,229.69,229.66,2.1763]
[1733257255666,9.2902682,229.72,229.67,2.1762]
[1733257255870,7.0502682,229.72,229.67,2.1762]
[1733257256070,2.24,229.71,229.67,2.1762]
[1733257256670,2.176,229.7,229.67,2.1762]
[1733257257463,2.24,229.71,229.7,2.1759]
[1733257257764,6.0799,229.73,229.69,7.0502682]
[1733257257765,1.3145,229.73,229.69,7.0502682]
[1733257257961,10.8619,230.09,229.71,7.0502682]
[1733257257962,2.24,229.72,229.71,7.0502682]
[1733257258670,3.8568,229.82,229.71,7.0502682]
[1733257258969,7.0502682,229.79,229.71,7.0502682]
[1733257259271,7.0502682,229.77,229.72,2.1757]
[1733257260572,9.2255682,229.77,229.73,2.1756]
[1733257260770,7.0502682,229.77,229.7,7.0502682]
[1733257260971,2.24,229.76,229.7,7.0502682]
[1733257261169,2.24,229.76,229.71,2.1758]
[1733257261470,2.24,229.76,229.72,7.0502682]
[1733257261671,3.8568,229.82,229.74,7.0502682]
[1733257261969,9.2902682,229.81,229.74,7.0502682]
[1733257262164,7.0502682,229.79,229.72,7.0502682]
[1733257262365,9.2253682,229.79,229.74,2.1755]
[1733257262864,9.2253682,229.79,229.72,7.0502682]
[1733257262865,9.2255682,229.77,229.72,2.1757]
[1733257263065,2.24,229.76,229.72,2.1757]
[1733257263470,4.4154,229.76,229.72,2.1757]
[1733257263871,4.4154,229.76,229.71,2.1758]
[1733257264068,2.24,229.76,229.7,7.0502682]
[1733257264368,2.24,229.76,229.72,2.1757]
[1733257265169,2.24,229.76,229.72,7.0502682]
[1733257265575,2.24,229.76,229.74,2.1755]
[1733257266279,2.24,229.76,229.75,2.1755]
[1733257267974,2.22,229.79,229.74,7.0502682]
[1733257268280,40.78,229.88,229.78,7.0502682]
[1733257268281,2.22,229.84,229.78,7.0502682]
[1733257268478,2.22,229.84,229.83,2.1747]
[1733257268776,2.22,229.84,229.8,7.0502682]
[1733257269170,2.22,229.84,229.78,7.0502682]
[1733257269375,7.0502682,229.86,229.77,0.17]
[1733257269573,2.22,229.83,229.78,2.1751]
[1733257269778,2.22,229.83,229.77,7.2202682]
[1733257270174,2.22,229.83,229.78,2.1751]
[1733257270474,7.0502682,229.82,229.77,0.17]
[1733257271582,7.0502682,229.8,229.77,2.3452]
[1733257271784,2.22,229.83,229.77,0.17]
[1733257272077,7.0502682,229.82,229.77,0.17]
[1733257272276,7.0502682,229.82,229.78,2.1751]
[1733257272576,7.0502682,229.8,229.74,7.0502682]
[1733257272772,7.0502682,229.82,229.74,7.0502682]
[1733257273384,7.0502682,229.82,229.77,2.1752]
[1733257273581,9.2250682,229.82,229.77,2.1752]
[1733257274684,7.0502682,229.82,229.74,7.0502682]
[1733257275081,7.0502682,229.82,229.76,7.0502682]
[1733257275279,2.22,229.83,229.76,7.0502682]
[1733257276280,7.0502682,229.84,229.76,7.0502682]
[1733257276476,2.22,229.83,229.81,2.1748]
[1733257276673,2.22,229.83,229.76,7.0502682]
[1733257276875,2.22,229.83,229.78,7.0502682]
[1733257277077,2.22,229.83,229.82,2.1748]
[1733257277277,2.22,229.86,229.8,7.0502682]
[1733257277577,7.0502682,229.89,229.88,2.1742]
[1733257277779,9.2702682,229.89,229.88,2.1742]
[1733257277976,3.9322,229.99,229.84,0.17]
[1733257278181,7.0502682,229.89,229.84,0.17]
[1733257278382,9.2702682,229.89,229.84,0.17]
[1733257278688,9.2702682,229.89,229.88,2.1742]
[1733257279180,2.22,229.89,229.88,2.1742]
[1733257279780,2.22,229.89,229.84,0.17]
[1733257280383,2.22,229.89,229.87,2.1743]
[1733257281184,2.22,229.89,229.84,0.17]
[1733257281185,2.22,229.89,229.86,2.1744]
[1733257281582,2.22,229.89,229.82,7.0502682]
[1733257281884,2.22,229.89,229.87,2.1743]
[1733257282082,2.22,229.89,229.84,7.0502682]
[1733257282977,2.22,229.89,229.88,2.1742]
[1733257283785,2.1737,229.95,229.89,2.1741]
[1733257283989,7.0502682,229.91,229.89,2.1741]
[1733257284185,7.0502682,229.91,229.84,7.0502682]
[1733257284488,7.0502682,229.91,229.89,2.1741]
[1733257286187,2.1735,229.97,229.86,7.0502682]
[1733257286379,7.0502682,229.93,229.86,7.0502682]
[1733257286784,2.1737,229.94,229.86,7.0502682]
[1733257286981,7.0502682,229.92,229.86,7.0502682]
[1733257287181,7.0502682,229.92,229.87,2.1743]
[1733257287182,9.2702682,229.92,229.87,2.1743]
[1733257287386,9.2702682,229.92,229.86,7.0502682]
[1733257287785,9.2702682,229.92,229.89,2.1741]
[1733257293295,9.2702682,229.92,229.86,7.0502682]
[1733257293898,9.2702682,229.92,229.87,2.1743]
[1733257294197,9.2702682,229.92,229.86,7.0502682]
[1733257294392,9.2702682,229.92,229.77,1.2913]
[1733257294594,7.0502682,229.9,229.77,1.2913]
[1733257294893,9.2243682,229.9,229.83,7.0502682]
[1733257295088,7.0502682,229.9,229.83,7.0502682]
[1733257296695,9.2702682,229.92,229.85,7.0502682]
[1733257296893,2.22,229.92,229.85,7.0502682]
[1733257297093,2.22,229.92,229.87,2.1743]
[1733257297292,2.22,229.91,229.87,9.2245682]
[1733257297493,2.22,229.91,229.87,7.0502682]
[1733257298100,2.22,229.91,229.89,2.1741]
[1733257298297,2.622,229.99,229.89,7.0502682]
[1733257298488,7.0502682,229.97,229.89,7.0502682]
[1733257298686,7.0502682,229.97,229.92,2.3438]
[1733257298889,7.0502682,229.96,229.92,2.3438]
[1733257299087,7.0502682,229.95,229.92,0.17]
[1733257299788,2.22,229.98,229.92,0.17]
[1733257299990,7.0502682,229.96,229.92,0.17]
[1733257300690,9.2238682,229.96,229.92,2.3438]
[1733257301290,2.1736,229.96,229.93,2.1738]
[1733257301492,9.2238682,229.96,229.93,2.1738]
[1733257301894,2.622,229.99,229.92,7.2202682]
[1733257302097,2.22,229.95,229.92,0.17]
[1733257302698,2.22,229.95,229.9,7.0502682]
[1733257303199,7.0502682,229.97,229.9,7.0502682]
[1733257303200,2.622,229.99,229.9,7.0502682]
[1733257303399,2.22,229.96,229.9,7.0502682]
[1733257304394,2.22,229.96,229.95,2.1736]
[1733257305597,2.22,229.96,229.9,7.0502682]
[1733257306500,9.2702682,229.96,229.72,4.67811685]
[1733257306802,9.2702682,229.96,229.92,2.1738]
[1733257309200,11.4437682,229.96,229.9,2.174]
[1733257309504,9.2702682,229.96,229.89,7.0502682]
[1733257310207,7.0502682,229.94,229.87,7.0502682]
[1733257310402,7.0502682,229.94,229.86,7.0502682]
[1733257310799,7.0502682,229.94,229.9,2.174]
[1733257311001,7.0502682,229.94,229.86,7.0502682]
[1733257311002,7.0502682,229.92,229.86,7.0502682]
[1733257311202,2.22,229.91,229.86,7.0502682]
[1733257311403,2.22,229.91,229.9,2.174]
[1733257318303,2.22,229.91,229.79,2.22]
[1733257318304,9.2702682,229.91,229.77,1.2913]
[1733257318603,7.0502682,229.89,229.82,7.0502682]
[1733257319104,2.22,229.91,229.77,1.2913]
[1733257319105,9.2702682,229.91,229.87,2.1743]
[1733257320504,9.2702682,229.91,229.84,7.0502682]
[1733257321304,9.2702682,229.91,229.87,2.1743]
[1733257322508,9.2702682,229.91,229.84,7.0502682]
[1733257323206,9.2702682,229.91,229.88,2.1742]
[1733257323407,7.0502682,229.9,229.88,2.1742]
[1733257325108,7.0502682,229.9,229.84,7.0502682]
[1733257325109,9.2243682,229.9,229.77,1.2913]
[1733257325410,7.0502682,229.88,229.81,7.0502682]
[1733257326205,2.22,229.91,229.75,1.352]
[1733257326206,7.0502682,229.86,229.75,1.352]
[1733257326406,2.22,229.85,229.79,7.0502682]
[1733257326800,2.22,229.85,229.83,2.1747]
[1733257327606,2.22,229.85,229.82,2.1748]
[1733257328609,2.22,229.85,229.83,2.1747]
[1733257330212,9.2702682,229.85,229.79,7.0502682]
[1733257330613,9.2702682,229.85,229.71,1.2634]
[1733257330816,9.2702682,229.85,229.82,2.1747]
[1733257331113,2.22,229.85,229.82,2.1747]
[1733257331315,2.22,229.85,229.83,2.1747]
[1733257331521,7.0502682,229.84,229.79,7.0502682]
[1733257331713,2.22,229.85,229.79,7.0502682]
[1733257332012,7.0502682,229.84,229.77,7.0502682]
[1733257332815,2.22,229.85,229.77,7.0502682]
[1733257333015,7.0502682,229.84,229.79,2.1751]
[1733257333218,7.0502682,229.84,229.77,7.0502682]
[1733257333619,7.0502682,229.84,229.82,2.1748]
[1733257333821,2.22,229.85,229.82,2.1748]
[1733257334024,9.2702682,229.85,229.82,2.1748]
[1733257334523,9.2702682,229.85,229.81,2.1749]
[1733257335225,7.0502682,229.83,229.81,2.1749]
[1733257335622,6.8802682,229.83,229.81,2.1749]
[1733257336128,2.22,229.85,229.81,2.1749]
[1733257336324,7.0502682,229.83,229.81,2.1749]
[1733257336728,2.22,229.85,229.81,2.1749]
[1733257337026,7.0502682,229.83,229.77,7.0502682]
[1733257337725,2.1741,229.9,229.8,2.175]
[1733257337922,7.0502682,229.83,229.8,2.175]
[1733257338121,9.2702682,229.83,229.8,2.175]
[1733257339024,2.22,229.83,229.81,2.1749]
[1733257339322,9.2702682,229.83,229.77,7.0502682]
[1733257340727,9.2702682,229.83,229.8,2.1749]
[1733257341725,9.2702682,229.83,229.71,1.2634]
[1733257341726,7.0502682,229.81,229.71,1.2634]
[1733257341918,7.0502682,229.78,229.71,1.2634]
[1733257342221,9.2702682,229.78,229.71,1.2634]
[1733257342424,9.2702682,229.78,229.75,2.1754]
[1733257342827,9.2702682,229.78,229.71,1.2634]
[1733257343030,7.0502682,229.76,229.64,1.2485]
[1733257343232,2.22,229.78,229.67,7.0502682]
[1733257343431,7.0502682,229.74,229.72,2.1757]
[1733257343629,7.0502682,229.74,229.67,7.0502682]
[1733257344024,2.22,229.78,229.69,7.0502682]
[1733257344232,2.22,229.78,229.71,7.0502682]
[1733257345432,2.22,229.78,229.74,2.1755]
[1733257345633,2.22,229.78,229.71,7.0502682]
[1733257346235,2.22,229.78,229.75,2.1754]
[1733257347740,2.22,229.83,229.77,7.0502682]
[1733257347934,3.95,229.9,229.68,2.22]
[1733257347935,2.22,229.84,229.72,1.3538]
[1733257348133,2.22,229.84,229.8,2.175]
[1733257348542,7.0502682,229.85,229.8,2.175]
[1733257348837,2.22,229.83,229.8,2.175]
[1733257349337,2.22,229.83,229.77,7.0502682]
[1733257349635,7.0502682,229.82,229.64,1.2485]
[1733257349830,7.0502682,229.82,229.74,7.0502682]
[1733257350032,7.0502682,229.82,229.79,2.175]
[1733257350236,7.0502682,229.82,229.76,7.0502682]
[1733257350941,2.22,229.83,229.76,7.0502682]
[1733257351942,2.22,229.83,229.81,2.1748]
[1733257356143,9.2702682,229.83,229.8,2.175]
[1733257356644,9.2702682,229.83,229.76,7.0502682]
[1733257358645,2.22,229.83,229.8,2.1749]
[1733257358846,9.2702682,229.83,229.8,2.1749]
[1733257359145,2.22,229.83,229.8,2.1749]
[1733257359349,9.2702682,229.83,229.81,2.1749]
[1733257359846,2.22,229.83,229.81,2.1749]
[1733257360145,2.22,229.83,229.7,2.22]
[1733257360343,2.22,229.83,229.75,7.0502682]
[1733257360848,7.0502682,229.8,229.67,4.3525]
[1733257361045,7.0502682,229.8,229.72,7.0502682]
[1733257361550,2.22,229.83,229.72,7.0502682]
[1733257361840,7.0502682,229.81,229.74,7.0502682]
[1733257363040,9.2702682,229.83,229.74,7.0502682]
[1733257363440,9.2702682,229.83,229.78,2.1751]
[1733257363841,7.0502682,229.81,229.74,7.0502682]
[1733257364040,7.0502682,229.81,229.77,2.1752]
[1733257364538,7.0502682,229.81,229.68,2.22]
[1733257364754,7.0502682,229.81,229.74,7.0502682]
[1733257365049,4.3947,229.83,229.74,7.0502682]
[1733257365244,7.0502682,229.81,229.74,7.0502682]
[1733257365439,2.175,229.8,229.67,4.3525]
[1733257365642,7.0502682,229.81,229.66,1.3556]
[1733257365643,7.0502682,229.77,229.68,1.34901702]
[1733257365848,7.0502682,229.77,229.68,7.0502682]
[1733257365849,2.22,229.76,229.68,7.0502682]
[1733257366346,7.0502682,229.75,229.68,7.0502682]
[1733257366552,2.22,229.76,229.7,7.0502682]
[1733257366745,2.22,229.76,229.72,7.0502682]
[1733257366941,2.22,229.76,229.7,7.0502682]
[1733257367345,2.22,229.76,229.74,2.1755]
[1733257369456,2.22,229.76,229.72,2.1757]
[1733257369955,2.22,229.76,229.62,4.3534]
[1733257370150,9.2702682,229.76,229.7,2.1759]
[1733257370345,7.0502682,229.75,229.68,7.0502682]
[1733257370547,7.0502682,229.75,229.7,2.1759]
[1733257371149,2.1756,229.74,229.69,2.176]
[1733257371355,7.0502682,229.75,229.61,1.3229]
[1733257371548,7.0502682,229.75,229.67,7.0502682]
[1733257371949,9.2257682,229.75,229.7,2.1759]
[1733257372150,2.22,229.76,229.67,7.0502682]
[1733257372350,7.0502682,229.75,229.67,7.0502682]
[1733257372750,7.0502682,229.75,229.7,2.1759]
[1733257372953,7.0502682,229.75,229.67,7.0502682]
[1733257373255,7.0502682,229.75,229.69,7.0502682]
[1733257373958,7.0502682,229.75,229.7,2.1759]
[1733257374454,7.0502682,229.75,229.69,7.0502682]
[1733257374455,4.3954,229.76,229.69,7.0502682]
[1733257375253,2.22,229.76,229.69,7.0502682]
[1733257375657,2.22,229.8,229.79,2.1751]
[1733257376256,2.22,229.8,229.75,7.0502682]
[1733257376952,2.22,229.8,229.79,2.1751]
[1733257377549,2.22,229.8,229.76,2.1754]
[1733257377754,9.2702682,229.8,229.74,7.0502682]
[1733257377959,9.2702682,229.8,229.64,2.22]
[1733257378160,9.2254682,229.78,229.73,2.1756]
[1733257380060,7.0502682,229.75,229.62,2.22]
[1733257380256,2.22,229.74,229.62,2.22]
[1733257380555,2.22,229.74,229.71,2.1758]
[1733257380757,2.22,229.74,229.68,7.0502682]
[1733257381061,2.22,229.74,229.62,2.22]
[1733257381062,2.22,229.74,229.71,2.1758]
[1733257381760,2.22,229.74,229.69,7.0502682]
[1733257383060,2.22,229.74,229.71,2.1758]
[1733257383261,2.22,229.74,229.69,7.0502682]
[1733257383657,2.22,229.74,229.7,2.1759]
[1733257383859,2.22,229.74,229.69,7.0502682]
[1733257384366,2.22,229.74,229.71,2.1758]
[1733257385061,2.22,229.74,229.72,2.1757]
[1733257385463,1.3654,229.85,229.62,2.22]
[1733257385464,2.22,229.8,229.73,7.0502682]
[1733257385663,2.22,229.8,229.75,7.0502682]
[1733257386365,2.22,229.8,229.79,2.1751]
[1733257386958,2.22,229.8,229.78,2.1752]
[1733257387360,2.22,229.8,229.76,7.0502682]
[1733257388561,2.22,229.8,229.77,2.1753]
[1733257388764,2.22,229.8,229.76,7.0502682]
[1733257389164,2.22,229.8,229.79,2.1751]
[1733257391164,2.2,229.82,229.81,2.1749]
[1733257394070,2.2,229.82,229.79,2.175]
[1733257394567,2.2,229.82,229.75,7.0502682]
[1733257394760,2.2,229.82,229.78,2.1752]
[1733257395063,9.2252682,229.81,229.73,7.0502682]
[1733257395670,9.2252682,229.81,229.77,2.1752]
[1733257395867,7.0502682,229.79,229.73,7.0502682]
[1733257396367,2.1752,229.78,229.69,1.3147]
[1733257396664,2.2,229.77,229.69,1.3147]
[1733257396872,2.2,229.77,229.72,7.0502682]
[1733257397565,2.2,229.77,229.74,2.1755]
[1733257397864,2.2,229.77,229.72,7.0502682]
[1733257398768,2.2,229.77,229.73,2.1756]
[1733257398967,2.2,229.77,229.72,7.0502682]
[1733257399470,2.2,229.77,229.69,1.3147]
[1733257399671,2.2,229.77,229.72,7.0502682]
[1733257399969,2.2,229.77,229.74,2.1755]
[1733257400470,2.2,229.77,229.72,7.0502682]
[1733257400771,2.2,229.77,229.7,7.0502682]
[1733257401267,2.2,229.77,229.73,2.1756]
[1733257401661,2.2,229.77,229.72,2.1757]
[1733257401862,2.2,229.77,229.7,7.0502682]
[1733257402263,2.2,229.77,229.74,2.1755]
[1733257403363,2.2,229.77,229.63,2.2]
[1733257403567,4.3754,229.77,229.72,2.1757]
[1733257403772,4.3754,229.77,229.7,7.0502682]
[1733257403967,2.2,229.77,229.7,7.0502682]
[1733257404869,2.2,229.81,229.74,7.0502682]
[1733257405474,2.2,229.81,229.76,2.1753]
[1733257405475,4.3749,229.81,229.76,2.1753]
[1733257405675,4.3749,229.81,229.74,7.0502682]
[1733257406971,4.3749,229.81,229.76,2.1753]
[1733257407776,4.3749,229.81,229.65,2.2]
[1733257407777,2.2,229.8,229.72,7.0502682]
[1733257408074,7.0502682,229.79,229.7,7.0502682]
[1733257408467,7.0502682,229.77,229.7,7.0502682]
[1733257409070,7.0502682,229.77,229.73,2.1757]
[1733257409273,2.1752,229.78,229.73,2.1757]
[1733257410171,7.0502682,229.77,229.62,2.2]
[1733257410377,7.0502682,229.77,229.63,3.50456955]
[1733257410568,7.0502682,229.77,229.68,7.0502682]
[1733257411176,2.1756,229.75,229.68,7.0502682]
[1733257411377,2.2,229.74,229.68,7.0502682]
[1733257412078,2.2,229.74,229.71,2.1758]
[1733257412469,2.2,229.74,229.62,2.15640892]
[1733257412669,2.2,229.74,229.63,1.34753995]